bitfinex/quotes_BTCUSD_20240827
["timestamp","ask_amount","ask_price","bid_price","bid_amount"]
[1724788327630,0.14725913,62169.0,62168.0,0.8061742]
[1724788327848,0.14825913,62169.0,62168.0,0.8151742]
[1724788328052,0.14825913,62169.0,62168.0,0.94146302]
[1724788328262,0.12514762,62169.0,62168.0,0.94746302]
[1724788328494,0.10203658,62169.0,62168.0,0.8251742]
[1724788328716,0.053822,62169.0,62168.0,0.8251742]
[1724788329606,0.10203658,62169.0,62168.0,0.8251742]
[1724788329815,0.053822,62169.0,62168.0,0.8251742]
[1724788332349,0.053822,62169.0,62168.0,0.95346462]
[1724788332563,0.003822,62169.0,62168.0,1.41587262]
[1724788332779,0.003822,62169.0,62168.0,1.2875822]
[1724788333425,0.002822,62169.0,62168.0,1.2825822]
[1724788333633,0.000822,62169.0,62168.0,1.2675822]
[1724788333835,0.002822,62169.0,62168.0,1.2785822]
[1724788334290,0.000822,62169.0,62168.0,1.2675822]
[1724788334475,0.000822,62169.0,62168.0,1.2825822]
[1724788334703,0.002822,62169.0,62168.0,1.2825822]
[1724788335599,0.05104854,62169.0,62168.0,1.2825822]
[1724788336025,0.002822,62169.0,62168.0,1.2825822]
[1724788336907,0.09925913,62169.0,62168.0,1.2825822]
[1724788338451,0.002822,62169.0,62168.0,1.2825822]
[1724788340515,0.00382202,62169.0,62168.0,0.4984662]
[1724788340682,0.17437087,62169.0,62168.0,0.4984662]
[1724788340908,0.05382202,62169.0,62168.0,0.4984662]
[1724788341671,0.05382202,62169.0,62168.0,0.0159042]
[1724788341885,0.24767899,62169.0,62168.0,0.0159042]
[1724788342771,0.24667899,62169.0,62168.0,0.0109042]
[1724788343191,0.40940556,62169.0,62168.0,0.0129042]
[1724788343398,0.24667899,62169.0,62168.0,0.0129042]
[1724788343551,0.24567899,62169.0,62168.0,0.0009042]
[1724788343763,0.24567899,62169.0,62168.0,0.0019042]
[1724788345566,0.24567899,62169.0,62168.0,0.0009042]
[1724788346019,0.24767899,62169.0,62168.0,0.0009042]
[1724788346935,0.41152999,62169.0,62168.0,0.0009042]
[1724788347389,0.41340556,62169.0,62168.0,0.0009042]
[1724788347622,0.25067899,62169.0,62168.0,0.0009042]
[1724788347819,0.41152999,62169.0,62168.0,0.0009042]
[1724788348079,0.41340556,62169.0,62168.0,0.0009042]
[1724788348445,0.57425656,62169.0,62168.0,0.0009042]
[1724788350375,0.41152999,62169.0,62168.0,0.0009042]
[1724788351208,0.25067899,62169.0,62168.0,0.0009042]
[1724788351420,0.41152999,62169.0,62168.0,0.0009042]
[1724788352253,0.73323299,62169.0,62168.0,0.0009042]
[1724788352681,1.38163899,62169.0,62168.0,0.0009042]
[1724788352881,1.48163899,62169.0,62168.0,0.0009042]
[1724788353536,1.47963899,62169.0,62168.0,0.0009042]
[1724788353746,1.47663899,62169.0,62168.0,0.0009042]
[1724788353953,1.48963899,62169.0,62168.0,0.0019042]
[1724788355488,1.50363899,62169.0,62168.0,0.0029042]
[1724788358110,1.20423297,62169.0,62168.0,0.0029042]
[1724788358322,0.674622,62169.0,62168.0,0.0029042]
[1724788359171,0.660622,62169.0,62168.0,0.0019042]
[1724788359372,0.669622,62169.0,62168.0,0.0029042]
[1724788360010,0.679622,62169.0,62168.0,0.0019042]
[1724788360245,0.690622,62169.0,62168.0,0.0029042]
[1724788360458,0.851473,62169.0,62168.0,0.0029042]
[1724788360694,0.690622,62169.0,62168.0,0.0029042]
[1724788361165,0.520822,62169.0,62168.0,0.0029042]
[1724788361998,0.511822,62169.0,62168.0,0.0019042]
[1724788362465,0.516822,62169.0,62168.0,0.0019042]
[1724788362615,0.539822,62169.0,62168.0,0.0019042]
[1724788362822,0.534822,62169.0,62168.0,0.0019042]
[1724788363032,0.534822,62169.0,62168.0,0.0009042]
[1724788363033,0.684673,62169.0,62168.0,0.0009042]
[1724788363359,0.612022,62169.0,62168.0,0.0009042]
[1724788364004,0.777873,62169.0,62168.0,0.0009042]
[1724788365376,0.617022,62169.0,62168.0,0.0009042]
[1724788367067,0.64043333,62169.0,62168.0,0.0009042]
[1724788370259,0.78476786,62169.0,62168.0,0.0009042]
[1724788370834,0.64043333,62169.0,62168.0,0.0009042]
[1724788371989,0.56123333,62169.0,62168.0,0.0009042]
[1724788374690,0.537822,62169.0,62168.0,0.0009042]
[1724788380276,0.56305318,62169.0,62168.0,0.0009042]
[1724788381367,1.04560718,62169.0,62168.0,0.0009042]
[1724788381575,1.51281018,62169.0,62168.0,0.0009042]
[1724788381781,2.82581618,62169.0,62168.0,0.0009042]
[1724788381988,2.82581618,62169.0,62162.0,0.0009042]
[1724788381989,1.39260047,62163.0,62162.0,0.0009042]
[1724788382205,1.39260047,62163.0,62140.0,0.0751]
[1724788382206,0.882686,62152.0,62140.0,0.0751]
[1724788382413,0.882686,62152.0,62137.0,0.0751]
[1724788382414,2.04493347,62152.0,62137.0,0.0751]
[1724788382616,1.74614247,62152.0,62137.0,0.0751]
[1724788382819,1.77138138,62152.0,62137.0,0.0751]
[1724788383031,2.09317238,62152.0,62137.0,0.0751]
[1724788383236,1.77138138,62152.0,62137.0,0.0751]
[1724788383454,1.78038138,62152.0,62151.0,0.0014]
[1724788384494,1.78738138,62152.0,62151.0,0.0024]
[1724788386270,1.81078123,62152.0,62151.0,0.0024]
[1724788387127,1.48899023,62152.0,62151.0,0.0024]
[1724788388027,1.16219923,62152.0,62151.0,0.0024]
[1724788388786,1.48899023,62152.0,62151.0,0.0024]
[1724788389425,1.48399023,62152.0,62151.0,0.0024]
[1724788390210,1.48899023,62152.0,62151.0,0.0024]
[1724788390417,1.16219923,62152.0,62151.0,0.0024]
[1724788390818,1.48399023,62152.0,62151.0,0.0024]
[1724788391327,0.58763876,62152.0,62151.0,0.0024]
[1724788394313,0.73198617,62152.0,62151.0,0.0024]
[1724788394765,0.58763876,62152.0,62151.0,0.0024]
[1724788395222,0.73198466,62152.0,62151.0,0.0024]
[1724788395429,0.58763876,62152.0,62151.0,0.0024]
[1724788396531,0.58763876,62152.0,62151.0,0.0033042]
[1724788398286,0.56423891,62152.0,62151.0,0.0033042]
[1724788398443,0.56423891,62152.0,62151.0,0.0819042]
[1724788398649,0.56423891,62152.0,62151.0,0.12227652]
[1724788399000,0.55723891,62152.0,62151.0,0.18327652]
[1724788399138,0.55723891,62152.0,62151.0,0.1429042]
[1724788399352,0.55823891,62152.0,62151.0,0.1429042]
[1724788399564,0.53523891,62152.0,62151.0,0.1429042]
[1724788399783,0.52523891,62152.0,62151.0,0.0799042]
[1724788399988,0.52723891,62152.0,62151.0,0.0799042]
[1724788400209,0.52723891,62152.0,62151.0,0.0809042]
[1724788400616,0.52823891,62152.0,62151.0,0.0809042]
[1724788403126,0.52823891,62152.0,62151.0,0.2759063]
[1724788403325,0.42823891,62152.0,62151.0,0.0809042]
[1724788405579,0.45123891,62152.0,62151.0,0.0023042]
[1724788406552,1.21159038,62152.0,62151.0,0.0023042]
[1724788407190,0.88979938,62152.0,62151.0,0.0023042]
[1724788408473,1.23534208,62152.0,62151.0,0.0023042]
[1724788410025,1.33534208,62152.0,62151.0,0.0023042]
[1724788412455,1.65713308,62152.0,62151.0,0.0023042]
[1724788412679,1.66213308,62152.0,62151.0,0.0023042]
[1724788412906,1.74353308,62152.0,62151.0,0.0023042]
[1724788413121,1.80923308,62152.0,62151.0,0.0023042]
[1724788413569,1.80623308,62152.0,62151.0,0.0023042]
[1724788413775,1.80823308,62152.0,62151.0,0.0023042]
[1724788414029,1.80623308,62152.0,62151.0,0.0023042]
[1724788414246,1.80623308,62152.0,62151.0,0.0013042]
[1724788414465,1.81023308,62152.0,62151.0,0.0013042]
[1724788414678,1.81123308,62152.0,62151.0,0.0013042]
[1724788415113,1.81023308,62152.0,62151.0,0.0013042]
[1724788415353,1.81323308,62152.0,62151.0,0.0013042]
[1724788415583,1.80923308,62152.0,62151.0,0.0013042]
[1724788416042,1.81323308,62152.0,62151.0,0.0013042]
[1724788418401,2.13502408,62152.0,62151.0,0.0013042]
[1724788420406,3.12641508,62152.0,62151.0,0.0013042]
[1724788420603,3.12641508,62152.0,62142.0,0.009042]
[1724788420604,1.80909847,62143.0,62142.0,0.009042]
[1724788420826,1.94849847,62143.0,62142.0,0.009042]
[1724788421038,2.07149847,62143.0,62142.0,0.009042]
[1724788421272,2.09674136,62143.0,62142.0,0.009042]
[1724788421494,2.41857936,62143.0,62142.0,0.009042]
[1724788421778,1.20971,62134.0,62133.0,0.1]
[1724788422017,1.74977547,62134.0,62133.0,0.1]
[1724788422232,2.07165947,62134.0,62133.0,0.1]
[1724788422664,2.09690479,62134.0,62133.0,0.1]
[1724788422885,1.84340132,62134.0,62133.0,0.1]
[1724788423076,2.13106679,62134.0,62133.0,0.1]
[1724788423522,2.12106679,62134.0,62133.0,0.1]
[1724788423746,2.13506679,62134.0,62133.0,0.1]
[1724788423969,2.31266679,62134.0,62133.0,0.1]
[1724788424393,2.30466679,62134.0,62133.0,0.1]
[1724788424820,2.14906679,62134.0,62133.0,0.1]
[1724788425059,2.31130324,62134.0,62133.0,0.1]
[1724788425282,1.81318279,62134.0,62133.0,0.1]
[1724788425583,1.82718279,62134.0,62133.0,0.1]
[1724788426020,1.41279879,62134.0,62133.0,0.1]
[1724788426458,0.93897279,62134.0,62133.0,0.1]
[1724788426673,1.01101479,62134.0,62133.0,0.1]
[1724788426899,0.86407279,62134.0,62133.0,0.1]
[1724788427119,0.87807279,62134.0,62133.0,0.1]
[1724788427338,0.86407279,62134.0,62133.0,0.1]
[1724788427557,1.00822942,62134.0,62133.0,0.1]
[1724788427769,1.02023374,62134.0,62133.0,0.1]
[1724788427985,1.18117574,62134.0,62133.0,0.1]
[1724788428139,0.87607279,62134.0,62133.0,0.1]
[1724788428559,1.18115308,62134.0,62133.0,0.1]
[1724788428758,1.02021108,62134.0,62133.0,0.1]
[1724788429178,1.02017536,62134.0,62133.0,0.1]
[1724788429396,1.03701479,62134.0,62133.0,0.1]
[1724788430009,1.18111736,62134.0,62133.0,0.1]
[1724788430275,1.02017536,62134.0,62133.0,0.1]
[1724788430405,1.03701479,62134.0,62133.0,0.1]
[1724788431223,1.03701479,62134.0,62133.0,0.1009042]
[1724788431653,0.87607279,62134.0,62133.0,0.1009042]
[1724788431862,1.03701479,62134.0,62133.0,0.1009042]
[1724788432256,0.87607279,62134.0,62133.0,0.1009042]
[1724788432460,1.03701479,62134.0,62133.0,0.1009042]
[1724788432690,0.87607279,62134.0,62133.0,0.1009042]
[1724788432895,0.74240898,62134.0,62133.0,0.1762042]
[1724788433226,0.59840732,62134.0,62133.0,0.2401042]
[1724788434465,0.59840732,62134.0,62133.0,0.1762042]
[1724788434663,0.87607279,62134.0,62133.0,0.1762042]
[1724788436287,0.87607279,62134.0,62133.0,0.1662042]
[1724788441112,0.87607279,62134.0,62133.0,0.0909042]
[1724788441344,0.87607279,62134.0,62133.0,0.0009042]
[1724788441559,1.10151479,62134.0,62133.0,0.0009042]
[1724788441777,1.74528279,62134.0,62133.0,0.0009042]
[1724788442423,2.07216679,62134.0,62133.0,0.0009042]
[1724788444411,2.05816679,62134.0,62133.0,0.0009042]
[1724788444875,2.2159577,62134.0,62133.0,0.0009042]
[1724788445095,2.04616679,62134.0,62133.0,0.0009042]
[1724788445301,2.07416679,62134.0,62133.0,0.0009042]
[1724788445522,2.15186679,62134.0,62133.0,0.0009042]
[1724788445946,2.13786679,62134.0,62133.0,0.0009042]
[1724788446153,2.15186679,62134.0,62133.0,0.0009042]
[1724788446588,2.13786679,62134.0,62133.0,0.0009042]
[1724788447003,1.82998279,62134.0,62133.0,0.0009042]
[1724788447218,1.81598279,62134.0,62133.0,0.0009042]
[1724788447422,1.82998279,62134.0,62133.0,0.0009042]
[1724788447624,0.57740732,62134.0,62133.0,0.0009042]
[1724788447832,0.56340732,62134.0,62133.0,0.0009042]
[1724788448042,0.57740732,62134.0,62133.0,0.0009042]
[1724788448252,0.54940732,62134.0,62133.0,0.0009042]
[1724788448674,0.72434932,62134.0,62133.0,0.0009042]
[1724788448882,0.88211544,62134.0,62133.0,0.0009042]
[1724788449510,0.89117174,62134.0,62133.0,0.0009042]
[1724788449681,0.88617278,62134.0,62133.0,0.0009042]
[1724788449891,1.06423332,62134.0,62133.0,0.0009042]
[1724788450092,0.75334932,62134.0,62133.0,0.0009042]
[1724788450305,1.39711732,62134.0,62133.0,0.0009042]
[1724788450504,1.54231732,62134.0,62133.0,0.0009042]
[1724788451919,1.14033332,62134.0,62133.0,0.0009042]
[1724788452187,1.35789879,62134.0,62133.0,0.0009042]
[1724788453765,0.59240732,62134.0,62133.0,0.0009042]
[1724788454081,0.71218065,62134.0,62133.0,0.0009042]
[1724788454295,0.56824532,62134.0,62133.0,0.0009042]
[1724788454508,1.00685279,62134.0,62133.0,0.0009042]
[1724788455141,0.84591079,62134.0,62133.0,0.0009042]
[1724788455567,0.84673279,62134.0,62133.0,0.0009042]
[1724788457491,0.56906732,62134.0,62133.0,0.0833042]
[1724788459282,0.56906732,62134.0,62133.0,0.1475042]
[1724788460968,0.46906732,62134.0,62133.0,0.1475042]
[1724788462029,0.44606732,62134.0,62133.0,0.38152492]
[1724788462281,0.44606732,62134.0,62133.0,1.02530492]
[1724788462505,0.44606732,62134.0,62133.0,0.70341492]
[1724788462942,0.43706732,62134.0,62133.0,0.70341492]
[1724788463142,0.43706732,62134.0,62133.0,0.6303392]
[1724788463362,0.42606732,62134.0,62133.0,0.6303392]
[1724788464423,0.42706732,62134.0,62133.0,0.6303392]
[1724788464848,0.43606732,62134.0,62133.0,0.6303392]
[1724788465471,0.42706732,62134.0,62133.0,0.6303392]
[1724788465678,0.42806732,62134.0,62133.0,0.6303392]
[1724788466060,0.42806732,62134.0,62133.0,0.3084492]
[1724788472153,0.42806732,62134.0,62133.0,0.1475042]
[1724788476274,0.42706732,62134.0,62133.0,0.1475042]
[1724788476484,0.44906732,62134.0,62133.0,0.0009042]
[1724788476705,1.06676844,62134.0,62133.0,0.0009042]
[1724788476916,0.90727845,62134.0,62133.0,0.0019042]
[1724788477151,0.83891943,62134.0,62133.0,0.0019042]
[1724788477353,0.67660932,62134.0,62133.0,0.0019042]
[1724788477776,0.67798095,62134.0,62133.0,0.0019042]
[1724788478018,0.51566732,62134.0,62133.0,0.0019042]
[1724788478647,0.65996174,62134.0,62133.0,0.0019042]
[1724788478841,0.51566732,62134.0,62133.0,0.0009042]
[1724788479378,0.51766732,62134.0,62133.0,0.0009042]
[1724788479985,0.45106732,62134.0,62133.0,0.0009042]
[1724788480407,0.42806732,62134.0,62133.0,0.2368492]
[1724788480616,0.42806732,62134.0,62133.0,0.0759042]
[1724788481500,0.42606732,62134.0,62133.0,0.0759042]
[1724788481939,0.44906732,62134.0,62133.0,0.0769042]
[1724788483061,0.44906732,62134.0,62133.0,0.0759042]
[1724788483482,0.45006732,62134.0,62133.0,0.0759042]
[1724788488866,0.45006732,62134.0,62133.0,0.0009042]
[1724788490402,0.75050932,62134.0,62133.0,0.0009042]
[1724788490581,1.20139748,62134.0,62133.0,0.0009042]
[1724788490734,1.52328148,62134.0,62133.0,0.0009042]
[1724788491592,1.85816548,62134.0,62133.0,0.0009042]
[1724788492012,1.87216548,62134.0,62133.0,0.0009042]
[1724788492237,1.85816548,62134.0,62133.0,0.0009042]
[1724788492993,2.54416548,62134.0,62133.0,0.0009042]
[1724788493219,3.05816548,62134.0,62133.0,0.0009042]
[1724788493740,2.73628148,62134.0,62133.0,0.0009042]
[1724788494181,3.05816548,62134.0,62133.0,0.0009042]
[1724788494386,3.04416548,62134.0,62133.0,0.0009042]
[1724788494587,3.05816548,62134.0,62133.0,0.0009042]
[1724788494799,3.07216548,62134.0,62133.0,0.0009042]
[1724788495006,3.05816548,62134.0,62133.0,0.0009042]
[1724788495406,3.07216548,62134.0,62133.0,0.0009042]
[1724788495608,3.05816548,62134.0,62133.0,0.0009042]
[1724788496300,2.75028148,62134.0,62133.0,0.0009042]
[1724788496723,3.07216548,62134.0,62133.0,0.0009042]
[1724788497001,2.25028148,62134.0,62133.0,0.0009042]
[1724788497200,1.55028148,62134.0,62133.0,0.0009042]
[1724788497435,1.22339748,62134.0,62133.0,0.0009042]
[1724788497647,1.54528148,62134.0,62133.0,0.0009042]
[1724788499141,1.87216548,62134.0,62133.0,0.0009042]
[1724788500361,1.55028148,62134.0,62133.0,0.0009042]
[1724788500598,1.22339748,62134.0,62133.0,0.0009042]
[1724788500818,1.54528148,62134.0,62133.0,0.0009042]
[1724788501020,1.08389748,62134.0,62133.0,0.0009042]
[1724788501458,0.54006732,62134.0,62133.0,0.0009042]
[1724788501679,0.71626927,62134.0,62133.0,0.0653042]
[1724788501912,0.99467234,62134.0,62133.0,0.0009042]
[1724788502120,1.44519639,62134.0,62133.0,0.0009042]
[1724788502322,1.43119639,62134.0,62133.0,0.0009042]
[1724788502627,1.77408039,62134.0,62133.0,0.0009042]
[1724788502835,1.77608039,62134.0,62133.0,0.0009042]
[1724788503006,1.78808039,62134.0,62133.0,0.0009042]
[1724788503307,1.79808039,62134.0,62133.0,0.0009042]
[1724788504218,0.4,62127.0,62126.0,0.06173452]
[1724788504419,0.5671409,62127.0,62126.0,0.06173452]
[1724788504885,0.423,62127.0,62126.0,0.06173452]
[1724788505014,0.44824654,62127.0,62126.0,0.06173452]
[1724788505411,0.45424654,62127.0,62126.0,0.06173452]
[1724788505846,0.46224654,62127.0,62126.0,0.06173452]
[1724788506661,0.46224654,62127.0,62126.0,0.07706167]
[1724788506887,0.43924654,62127.0,62126.0,0.07706167]
[1724788507090,0.43924654,62127.0,62126.0,0.30142467]
[1724788507295,0.55935547,62127.0,62126.0,0.30142467]
[1724788507506,0.43924654,62127.0,62126.0,0.60802352]
[1724788507649,0.08324654,62127.0,62126.0,0.92994952]
[1724788507856,0.17933823,62127.0,62126.0,0.92994952]
[1724788508081,0.17933823,62127.0,62126.0,1.25187552]
[1724788508082,0.07524654,62127.0,62126.0,1.25187552]
[1724788508245,0.07524654,62127.0,62126.0,1.37977677]
[1724788508464,0.12329632,62127.0,62126.0,1.37977677]
[1724788508671,0.04804978,62128.0,62126.0,1.71778277]
[1724788509057,0.04887178,62134.0,62133.0,0.32189]
[1724788509246,0.050822,62134.0,62133.0,1.308004]
[1724788509454,0.050822,62134.0,62133.0,0.953925]
[1724788509647,0.050822,62134.0,62133.0,0.632035]
[1724788510301,0.07606291,62134.0,62133.0,0.1492]
[1724788510508,0.35,62131.0,62129.0,0.1492]
[1724788510731,0.09606388,62130.0,62129.0,0.1492]
[1724788510955,0.47007986,62131.0,62129.0,0.1666322]
[1724788511180,0.47007986,62131.0,62129.0,0.1482]
[1724788511402,0.47007986,62131.0,62129.0,0.1472]
[1724788511618,0.14307986,62130.0,62129.0,0.1472]
[1724788511835,0.14307986,62130.0,62129.0,0.0829]
[1724788512275,0.14507986,62130.0,62129.0,0.0849]
[1724788512496,0.14407986,62130.0,62129.0,0.0839]
[1724788512979,0.14607986,62130.0,62129.0,0.0829]
[1724788513818,0.12307986,62130.0,62129.0,0.0829]
[1724788514271,0.005,62130.0,62129.0,0.0829]
[1724788514487,0.005,62130.0,62129.0,0.16528]
[1724788514691,0.35,62131.0,62129.0,0.16528]
[1724788515109,0.002,62130.0,62129.0,0.1661842]
[1724788515531,0.002,62130.0,62129.0,0.0998842]
[1724788515689,0.35,62131.0,62129.0,0.0998842]
[1724788516090,0.353,62131.0,62129.0,0.0998842]
[1724788516501,0.4329,62131.0,62129.0,0.0169842]
[1724788516772,0.02400002,62130.0,62129.0,0.0169842]
[1724788517375,0.75275702,62130.0,62129.0,0.0169842]
[1724788517689,0.75475702,62130.0,62129.0,0.0169842]
[1724788517895,0.431852,62130.0,62129.0,0.0169842]
[1724788518129,0.123,62130.0,62129.0,0.0169842]
[1724788518255,0.12400002,62130.0,62129.0,0.0169842]
[1724788518462,0.27411631,62130.0,62129.0,0.0169842]
[1724788518668,0.27311629,62130.0,62129.0,0.0169842]
[1724788518873,0.016,62130.0,62129.0,0.0169842]
[1724788519423,0.49411629,62131.0,62129.0,0.0169842]
[1724788519613,0.005,62130.0,62129.0,0.0169842]
[1724788519844,0.011,62130.0,62129.0,0.0169842]
[1724788520617,0.006,62130.0,62129.0,0.0169842]
[1724788521032,0.005,62130.0,62129.0,0.0169842]
[1724788521228,0.35,62131.0,62129.0,0.0169842]
[1724788521437,0.49511629,62131.0,62129.0,0.0169842]
[1724788521943,0.49411629,62131.0,62129.0,0.0169842]
[1724788522751,0.49611629,62131.0,62129.0,0.0169842]
[1724788525289,0.14511631,62130.0,62129.0,0.0169842]
[1724788525492,0.00100002,62130.0,62129.0,0.0169842]
[1724788525942,0.14506817,62130.0,62129.0,0.0169842]
[1724788527253,0.14406815,62130.0,62129.0,0.0169842]
[1724788527779,0.14506817,62130.0,62129.0,0.0169842]
[1724788527911,0.14507797,62130.0,62129.0,0.0169842]
[1724788528117,0.14707797,62130.0,62129.0,0.0169842]
[1724788528341,0.002,62130.0,62129.0,0.0169842]
[1724788528568,0.006,62130.0,62129.0,0.0169842]
[1724788528734,0.002,62130.0,62129.0,0.0169842]
[1724788529161,0.005,62130.0,62129.0,0.0169842]
[1724788531083,0.00600002,62130.0,62129.0,0.0169842]
[1724788535462,0.08380002,62130.0,62129.0,0.0169842]
[1724788535692,0.10680002,62130.0,62129.0,0.0169842]
[1724788536013,0.26775202,62130.0,62129.0,0.0169842]
[1724788536463,0.90656202,62130.0,62129.0,0.0169842]
[1724788536673,0.90956202,62130.0,62129.0,0.0169842]
[1724788536883,0.91456202,62130.0,62129.0,0.0169842]
[1724788537773,0.91156202,62130.0,62129.0,0.0169842]
[1724788537984,0.90656202,62130.0,62129.0,0.0169842]
[1724788538205,0.91056202,62130.0,62129.0,0.0169842]
[1724788538445,0.97736202,62130.0,62129.0,0.0169842]
[1724788538659,0.97336202,62130.0,62129.0,0.0169842]
[1724788539090,0.97236202,62130.0,62129.0,0.0169842]
[1724788539327,0.98018402,62130.0,62129.0,0.0169842]
[1724788539550,0.96918402,62130.0,62129.0,0.0169842]
[1724788539765,0.97718402,62130.0,62129.0,0.0169842]
[1724788539969,0.98618402,62130.0,62129.0,0.0169842]
[1724788541396,0.390822,62130.0,62129.0,0.0169842]
[1724788543073,1.013379,62130.0,62129.0,0.0169842]
[1724788543284,1.335284,62130.0,62129.0,0.0169842]
[1724788543532,1.013379,62130.0,62129.0,0.0169842]
[1724788544404,1.17552132,62130.0,62129.0,0.0169842]
[1724788544847,1.013379,62130.0,62129.0,0.0169842]
[1724788549455,0.691474,62130.0,62129.0,0.0169842]
[1724788549890,0.390822,62130.0,62129.0,0.0169842]
[1724788550109,0.367822,62130.0,62129.0,0.1565842]
[1724788550352,0.367822,62130.0,62129.0,0.20533982]
[1724788551459,0.359822,62130.0,62129.0,0.20533982]
[1724788551659,0.353822,62130.0,62129.0,0.1565842]
[1724788551867,0.356822,62130.0,62129.0,0.1565842]
[1724788552078,0.353822,62130.0,62129.0,0.1565842]
[1724788552291,0.350822,62130.0,62129.0,0.1565842]
[1724788552517,0.351822,62130.0,62129.0,0.1565842]
[1724788552713,0.350822,62130.0,62129.0,0.1565842]
[1724788553792,0.351822,62130.0,62129.0,0.1565842]
[1724788556856,0.351822,62130.0,62129.0,0.0169842]
[1724788557061,0.51387675,62130.0,62129.0,0.0169842]
[1724788557945,0.74102875,62130.0,62129.0,0.0169842]
[1724788558156,0.600974,62130.0,62129.0,0.0169842]
[1724788558384,0.601974,62130.0,62129.0,0.0169842]
[1724788558602,0.603974,62130.0,62129.0,0.0169842]
[1724788558842,0.600974,62130.0,62129.0,0.0169842]
[1724788559201,0.607974,62130.0,62129.0,0.0169842]
[1724788559812,0.603974,62130.0,62129.0,0.0169842]
[1724788560582,0.600974,62130.0,62129.0,0.0169842]
[1724788560754,0.440022,62130.0,62129.0,0.0169842]
[1724788560985,0.447022,62130.0,62129.0,0.0169842]
[1724788561201,0.455022,62130.0,62129.0,0.0169842]
[1724788561843,0.615974,62130.0,62129.0,0.0169842]
[1724788562055,0.937879,62130.0,62129.0,0.0169842]
[1724788562460,1.259784,62130.0,62129.0,0.0169842]
[1724788562741,1.335784,62130.0,62129.0,0.0169842]
[1724788563820,1.328784,62130.0,62129.0,0.0169842]
[1724788564067,1.336784,62130.0,62129.0,0.0169842]
[1724788564513,1.014879,62130.0,62129.0,0.0169842]
[1724788564935,1.006879,62130.0,62129.0,0.0169842]
[1724788565135,1.015879,62130.0,62129.0,0.0169842]
[1724788565393,1.337784,62130.0,62129.0,0.0169842]
[1724788565603,1.015879,62130.0,62129.0,0.0169842]
[1724788567202,1.437784,62130.0,62129.0,0.0169842]
[1724788567571,1.115879,62130.0,62129.0,0.0169842]
[1724788568008,1.46303127,62130.0,62129.0,0.0169842]
[1724788568957,1.49159479,62130.0,62129.0,0.0169842]
[1724788569322,2.05011908,62130.0,62129.0,0.0169842]
[1724788569666,1.81349979,62130.0,62129.0,0.0169842]
[1724788569874,1.80549979,62130.0,62129.0,0.0169842]
[1724788570078,1.81949979,62130.0,62129.0,0.0169842]
[1724788570731,1.48359479,62130.0,62129.0,0.0169842]
[1724788570941,1.72521408,62130.0,62129.0,0.0169842]
[1724788571144,2.06111908,62130.0,62129.0,0.0169842]
[1724788571352,1.82449979,62130.0,62129.0,0.0169842]
[1724788571561,2.06089654,62130.0,62129.0,0.0169842]
[1724788572404,2.06089654,62130.0,62125.0,0.009042]
[1724788572405,1.181741,62126.0,62125.0,0.009042]
[1724788572608,1.72644407,62126.0,62125.0,0.009042]
[1724788573717,1.73944407,62126.0,62125.0,0.009042]
[1724788574117,1.74044407,62126.0,62125.0,0.009042]
[1724788575011,1.72644407,62126.0,62125.0,0.009042]
[1724788575230,1.462041,62126.0,62125.0,0.009042]
[1724788575428,1.72644407,62126.0,62125.0,0.009042]
[1724788575648,1.74044407,62126.0,62125.0,0.009042]
[1724788576291,1.75444407,62126.0,62125.0,0.009042]
[1724788576717,1.74044407,62126.0,62125.0,0.009042]
[1724788576958,1.40451807,62126.0,62125.0,0.009042]
[1724788577392,1.41851807,62126.0,62125.0,0.009042]
[1724788577539,1.43251807,62126.0,62125.0,0.009042]
[1724788577957,1.41851807,62126.0,62125.0,0.009042]
[1724788578192,1.40451807,62126.0,62125.0,0.009042]
[1724788578405,1.41851807,62126.0,62125.0,0.009042]
[1724788579284,1.43251807,62126.0,62125.0,0.009042]
[1724788579645,1.75444407,62126.0,62125.0,0.009042]
[1724788580648,1.72644407,62126.0,62125.0,0.009042]
[1724788580877,1.75444407,62126.0,62125.0,0.009042]
[1724788581094,1.74044407,62126.0,62125.0,0.009042]
[1724788581520,0.560986,62117.0,62116.0,0.0122016]
[1724788581767,1.72653507,62117.0,62116.0,0.0122016]
[1724788582224,1.7797866,62117.0,62116.0,0.0122016]
[1724788582429,2.1017596,62117.0,62116.0,0.0122016]
[1724788583525,2.1237596,62117.0,62116.0,0.0122016]
[1724788586171,2.14718666,62117.0,62116.0,0.0122016]
[1724788587253,2.14718666,62117.0,62116.0,0.0131058]
[1724788587872,0.953195,62112.0,62111.0,0.0004]
[1724788588091,1.398193,62112.0,62111.0,0.0004]
[1724788589693,1.23264774,62112.0,62111.0,0.0004]
[1724788590135,1.24664774,62112.0,62111.0,0.0004]
[1724788590353,1.25964774,62112.0,62111.0,0.0004]
[1724788590556,1.103195,62112.0,62111.0,0.0004]
[1724788590940,1.425193,62112.0,62111.0,0.0004]
[1724788592653,1.425193,62112.0,62100.0,4e-05]
[1724788592654,1.036084,62101.0,62100.0,4e-05]
[1724788592894,0.405,62092.0,62091.0,0.0004]
[1724788593098,1.680357,62092.0,62091.0,0.0004]
[1724788593302,1.680357,62092.0,62071.0,0.0004]
[1724788593303,0.4,62075.0,62071.0,0.0004]
[1724788593571,0.07169419,62072.0,62071.0,0.0004]
[1724788593791,0.35,62074.0,62073.0,0.1611]
[1724788594001,0.05,62075.0,62074.0,0.483294]
[1724788594221,0.05,62075.0,62074.0,0.94679]
[1724788594629,0.07526387,62075.0,62074.0,0.94679]
[1724788596052,0.07526387,62075.0,62074.0,1.268986]
[1724788596284,0.04775708,62089.0,62087.0,0.161064]
[1724788596491,0.4,62088.0,62087.0,0.20982659]
[1724788596735,0.4,62088.0,62087.0,0.53295459]
[1724788597186,0.4,62088.0,62087.0,0.624492]
[1724788597633,0.4,62088.0,62087.0,0.1413]
[1724788597793,0.401,62088.0,62087.0,0.1413]
[1724788598000,0.4,62088.0,62087.0,0.1413]
[1724788598868,0.4,62088.0,62077.0,0.0773]
[1724788598869,0.35,62080.0,62077.0,0.0773]
[1724788599198,0.05,62078.0,62077.0,0.0773]
[1724788600545,0.05,62078.0,62077.0,0.29715482]
[1724788600752,0.051,62078.0,62077.0,0.29815482]
[1724788600972,0.051,62078.0,62077.0,0.62033482]
[1724788601750,0.051,62078.0,62077.0,0.68193482]
[1724788602184,0.051,62078.0,62077.0,0.1409]
[1724788602392,0.051,62078.0,62077.0,0.30199]
[1724788602844,0.051,62078.0,62077.0,0.1409]
[1724788603071,0.051,62078.0,62077.0,0.1359]
[1724788603744,0.051,62078.0,62077.0,0.29699]